bitfinex/quotes_SOLUSD_20240716
["timestamp","ask_amount","ask_price","bid_price","bid_amount"]
[1721112803078,25.792,155.23,155.22,0.5]
[1721112803261,26.292,155.23,155.22,0.5]
[1721112803463,71.292,155.23,155.22,0.5]
[1721112803677,6.4453,155.15,155.1,15.9018641]
[1721112803849,0.5,155.14,155.1,15.9018641]
[1721112804053,0.5,155.14,155.1,0.8176641]
[1721112804672,0.5,155.16,155.1,0.8176641]
[1721112804875,3.26344285,155.15,155.1,0.8176641]
[1721112805057,0.5,155.14,155.1,0.8176641]
[1721112805356,6.4466,155.12,155.1,0.8176641]
[1721112805561,0.5,155.11,155.1,0.8176641]
[1721112806277,1.4573144,155.11,155.1,0.8176641]
[1721112806476,0.9573144,155.11,155.1,0.8176641]
[1721112806688,1.4573144,155.11,155.1,0.8176641]
[1721112807168,0.9573144,155.11,155.1,0.8176641]
[1721112807560,4.22075725,155.11,155.1,0.8176641]
[1721112807863,4.22075725,155.11,155.0,0.04051788]
[1721112807864,3.26344285,155.05,155.0,0.04051788]
[1721112808069,0.5,155.04,155.0,0.04051788]
[1721112808490,0.5,155.06,155.0,0.04051788]
[1721112809163,4.22075725,155.11,155.0,0.04051788]
[1721112809377,0.9573144,155.01,155.0,0.04051788]
[1721112809775,3.26344285,155.09,155.0,0.04051788]
[1721112809976,0.5,155.08,155.0,0.04051788]
[1721112810174,3.76344285,155.08,155.0,0.04051788]
[1721112810878,0.5,155.08,155.0,0.04051788]
[1721112811078,3.26344285,155.06,155.0,0.04051788]
[1721112811288,0.5,155.07,155.0,0.04051788]
[1721112811490,3.76344285,155.07,155.0,0.04051788]
[1721112811873,0.5,155.06,155.0,0.04051788]
[1721112812463,3.26344285,155.05,155.0,0.04051788]
[1721112812885,3.76344285,155.1,155.0,0.04051788]
[1721112813077,0.5,155.1,155.0,0.04051788]
[1721112813388,3.76344285,155.1,155.0,0.04051788]
[1721112813562,0.5,155.1,155.0,0.04051788]
[1721112813762,0.5,155.11,155.0,0.04051788]
[1721112813964,0.5,155.1,155.0,0.04051788]
[1721112814374,3.26344285,155.07,155.0,0.04051788]
[1721112814573,0.5,155.06,155.0,0.04051788]
[1721112815469,3.76344285,155.09,155.0,0.04051788]
[1721112815664,0.5,155.09,155.0,0.04051788]
[1721112815879,3.26344285,155.07,155.0,0.04051788]
[1721112816099,0.5,155.06,155.0,0.04051788]
[1721112816391,3.26344285,155.03,155.0,0.04051788]
[1721112816690,3.26344285,155.05,155.0,0.04051788]
[1721112816884,0.5,155.04,155.0,0.04051788]
[1721112817188,3.26344285,155.05,155.0,0.04051788]
[1721112817497,6.58986014,155.1,155.0,1.33065525]
[1721112817666,0.5,155.1,155.01,21.7931]
[1721112817999,9.86857422,155.15,155.01,21.7931]
[1721112818289,0.5,155.14,155.02,45.0]
[1721112818869,0.5,155.14,155.03,21.28933509]
[1721112819065,6.9459,155.14,155.04,45.0]
[1721112819376,6.9459,155.14,155.01,21.7931]
[1721112819377,19.35,155.12,155.01,21.7931]
[1721112819683,0.5,155.11,155.02,0.85553218]
[1721112819891,0.5,155.11,155.02,1.28982458]
[1721112820189,0.5,155.12,155.01,21.7931]
[1721112820373,6.60520533,155.17,155.01,21.7931]
[1721112820374,3.76344285,155.11,155.01,21.7931]
[1721112820786,3.26344285,155.09,155.01,21.7931]
[1721112821088,3.26344285,155.09,155.02,1.28984989]
[1721112821391,3.26344285,155.09,155.01,21.7931]
[1721112821392,0.5,155.14,155.01,21.7931]
[1721112821563,3.26344285,155.13,155.01,21.7931]
[1721112821764,0.5,155.12,155.01,21.7931]
[1721112821986,3.26344285,155.11,155.02,21.12661072]
[1721112822192,3.26344285,155.13,155.02,65.0]
[1721112822363,3.26344285,155.13,155.04,30.0]
[1721112822564,3.26344285,155.13,155.05,45.0]
[1721112823199,6.60520533,155.17,155.06,43.41964421]
[1721112823360,6.4427,155.22,155.06,43.41964421]
[1721112823361,0.5,155.2,155.07,45.0]
[1721112823567,0.5,155.2,155.08,21.28891612]
[1721112823800,0.5,155.2,155.08,20.0]
[1721112823996,0.5,155.2,155.09,45.0]
[1721112824172,7.1106632,155.22,155.1,15.025]
[1721112824371,0.5,155.22,155.11,45.0]
[1721112824593,0.5,155.2,155.11,45.0]
[1721112825172,3.26344285,155.19,155.11,45.0]
[1721112825371,0.5,155.18,155.1,45.025]
[1721112825590,3.76344285,155.17,155.1,45.025]
[1721112825895,3.26344285,155.15,155.1,45.025]
[1721112826088,0.5,155.14,155.1,15.025]
[1721112827232,0.5,155.14,155.06,22.7717]
[1721112827377,3.26344285,155.13,155.06,16.1777]
[1721112827702,0.5,155.12,155.02,16.1777]
[1721112827876,3.26344285,155.11,155.02,16.1777]
[1721112828076,0.5,155.1,155.02,16.1777]
[1721112828301,3.26344285,155.11,155.02,16.1777]
[1721112828709,0.5,155.1,155.02,16.1777]
[1721112828999,3.26344285,155.13,155.02,16.1777]
[1721112829174,0.5,155.12,155.02,16.1777]
[1721112829799,3.26344285,155.1,155.02,16.1777]
[1721112829982,0.5,155.09,155.02,16.1777]
[1721112830190,3.26344285,155.1,155.02,16.1777]
[1721112830398,0.5,155.09,155.02,16.1777]
[1721112830781,3.26344285,155.07,155.02,16.1777]
[1721112830993,3.26344285,155.07,155.0,0.04051788]
[1721112831193,0.5,155.06,155.0,0.04051788]
[1721112831726,3.26344285,155.05,155.0,0.04051788]
[1721112831887,0.5,155.04,155.0,0.04051788]
[1721112832810,3.26344285,155.05,155.0,0.04051788]
[1721112833017,0.5,155.09,155.0,0.04051788]
[1721112833194,3.26344285,155.13,155.0,1.32817698]
[1721112833393,3.26344285,155.13,155.0,13.06473413]
[1721112833589,0.5,155.12,155.0,0.04051788]
[1721112833808,3.26344285,155.13,155.0,0.04051788]
[1721112834693,3.26344285,155.13,155.01,22.339]
[1721112835010,3.26344285,155.13,155.02,65.0]
[1721112835318,3.26344285,155.13,155.03,1.28925065]
[1721112835502,3.26344285,155.13,155.02,65.0]
[1721112835816,3.26344285,155.13,155.03,1.28351823]
[1721112836017,3.26344285,155.13,155.02,65.0]
[1721112837696,3.26344285,155.15,155.02,65.0]
[1721112837912,0.5,155.16,155.03,1.24095892]
[1721112838095,12.23317094,155.17,155.02,65.0]
[1721112838718,8.96972809,155.17,155.03,29.35]
[1721112839019,3.76344285,155.19,155.04,84.35]
[1721112839020,0.5,155.19,155.04,84.35]
[1721112839392,3.26344285,155.18,155.04,84.35]
[1721112839718,3.26344285,155.18,155.05,1.28891239]
[1721112840024,6.6213,155.2,155.06,16.3723]
[1721112840325,6.1213,155.2,155.07,65.0]
[1721112840618,3.26344285,155.19,155.08,6.4638]
[1721112840829,6.6213,155.2,155.09,45.0]
[1721112840995,6.1213,155.2,155.09,45.0]
[1721112841206,6.6213,155.2,155.09,45.0]
[1721112841596,3.26344285,155.19,155.09,45.0]
[1721112841822,0.5,155.18,155.08,6.4638]
[1721112842019,3.26344285,155.17,155.08,6.4638]
[1721112842245,6.1213,155.2,155.09,1.28903879]
[1721112842408,3.76344285,155.21,155.09,21.28903879]
[1721112842607,3.26344285,155.21,155.09,20.0]
[1721112843008,3.26344285,155.21,155.1,45.0]
[1721112843209,3.26344285,155.21,155.11,20.0]
[1721112843398,3.26344285,155.21,155.12,45.0]
[1721112843718,3.26344285,155.21,155.13,21.28860039]
[1721112843920,3.26344285,155.21,155.14,60.3489]
[1721112844121,3.26344285,155.21,155.15,1.28838662]
[1721112844327,3.26344285,155.21,155.13,20.0]
[1721112844328,0.5,155.2,155.1,15.3489]
[1721112844534,3.26344285,155.18,155.11,20.0]
[1721112844713,3.26344285,155.21,155.11,20.0]
[1721112845219,6.1494,155.28,155.13,41.2705]
[1721112845220,9.91284285,155.28,155.13,41.2705]
[1721112845422,9.91284285,155.28,155.14,20.0]
[1721112845597,9.91284285,155.28,155.15,1.28820534]
[1721112845598,3.26344285,155.26,155.15,1.28820534]
[1721112845800,3.26344285,155.23,155.13,21.9205]
[1721112845999,3.26344285,155.21,155.13,15.8633]
[1721112846218,22.2495,155.28,155.13,15.8633]
[1721112846219,10.20394285,155.27,155.14,1.2886747]
[1721112846431,6.9408,155.26,155.13,15.8633]
[1721112846610,9.70464285,155.25,155.13,15.8633]
[1721112846807,0.5,155.24,155.13,15.8633]
[1721112847018,3.26344285,155.22,155.13,15.8633]
[1721112847509,3.26344285,155.22,155.14,45.0]
[1721112847715,0.5,155.21,155.13,15.8633]
[1721112847916,0.5,155.21,155.09,21.3895]
[1721112848230,3.26344285,155.2,155.09,21.3895]
[1721112848440,0.5,155.19,155.09,21.3895]
[1721112848602,9.66364285,155.24,155.09,21.3895]
[1721112848803,3.26344285,155.22,155.09,21.3895]
[1721112849017,0.5,155.21,155.1,1.28875637]
[1721112849227,3.26344285,155.2,155.1,1.28875637]
[1721112849430,0.5,155.23,155.1,65.0]
[1721112849629,0.5,155.23,155.11,1.28862246]
[1721112849835,6.9421,155.23,155.11,20.0]
[1721112850010,3.26344285,155.21,155.12,45.0]
[1721112850428,3.26344285,155.21,155.13,1.28863314]
[1721112850636,3.26344285,155.21,155.12,45.0]
[1721112851049,3.26344285,155.21,155.13,1.28862687]
[1721112851737,3.26344285,155.21,155.12,45.0]
[1721112852329,6.4002,155.24,155.09,15.1553]
[1721112852330,3.26344285,155.19,155.09,15.1553]
[1721112852533,3.26344285,155.17,155.09,15.1553]
[1721112852740,3.26344285,155.17,155.05,21.8427]
[1721112852741,0.5,155.16,155.05,21.8427]
[1721112853036,0.5,155.16,155.09,6.4002]
[1721112853037,3.26344285,155.15,155.09,6.4002]
[1721112853346,3.26344285,155.13,155.05,21.8427]
[1721112854236,6.1059,155.16,155.05,21.8427]
[1721112854735,3.26344285,155.15,155.05,21.8427]
[1721112854935,0.5,155.14,155.05,15.6094]
[1721112855144,3.26344285,155.15,155.06,1.2890934]
[1721112855508,3.26344285,155.15,155.06,1.28903157]
[1721112855713,3.26344285,155.17,155.05,15.6094]
[1721112855940,3.26344285,155.15,155.05,15.6094]
[1721112856519,3.26344285,155.13,155.01,71.11279876]
[1721112858437,41.7027,155.2,155.04,62.48]
[1721112858438,3.26344285,155.17,155.04,62.48]
[1721112858613,3.26344285,155.17,155.02,11.28532391]
[1721112858614,3.26344285,155.17,155.05,43.13]
[1721112859216,0.5,155.16,155.02,43.13]
[1721112859413,0.5,155.16,155.03,65.0]
[1721112859724,3.26344285,155.15,155.03,65.0]
[1721112859924,0.5,155.14,155.03,65.0]
[1721112860359,3.76344285,155.15,155.03,65.0]
[1721112860640,0.5,155.14,155.01,27.98279876]
[1721112860836,21.8254,155.13,155.01,27.98279876]
[1721112861254,0.5,155.12,155.01,27.98279876]
[1721112861435,3.76344285,155.12,155.01,21.81409876]
[1721112861959,3.76344285,155.12,155.01,6.61279876]
[1721112862256,21.8254,155.13,155.02,10.0]
[1721112862423,3.26344285,155.17,155.03,20.0]
[1721112862424,9.82064285,155.17,155.03,20.0]
[1721112862624,3.26344285,155.15,155.03,20.0]
[1721112862832,0.5,155.14,155.03,20.0]
[1721112863024,0.5,155.14,155.04,45.0]
[1721112863225,3.26344285,155.15,155.05,20.0]
[1721112863458,9.32064285,155.17,155.06,45.0]
[1721112864048,9.82064285,155.17,155.06,45.0]
[1721112864355,3.26344285,155.15,155.06,45.0]
[1721112864648,3.26344285,155.14,155.06,45.0]
[1721112864854,0.5,155.13,155.01,6.60291235]
[1721112865061,3.26344285,155.14,155.02,21.28947922]
[1721112865227,3.26344285,155.14,155.02,40.63947922]
[1721112865424,3.26344285,155.14,155.03,43.13]
[1721112865655,3.26344285,155.14,155.04,20.0]
[1721112866036,3.76344285,155.14,155.04,20.0]
[1721112866245,3.26344285,155.14,155.05,45.0]
[1721112866634,0.5,155.13,155.05,45.0]
[1721112866831,3.26344285,155.14,155.04,20.0]
[1721112867058,3.76344285,155.14,155.04,20.0]
[1721112867257,3.26344285,155.14,155.05,1.14879698]
[1721112867761,3.26344285,155.14,155.04,20.0]
[1721112867972,3.26344285,155.14,155.05,1.28929122]
[1721112868160,3.26344285,155.14,155.05,46.28929122]
[1721112868542,3.26344285,155.14,155.05,45.0]
[1721112869052,3.26344285,155.14,155.06,1.28914473]
[1721112869251,3.26344285,155.14,155.05,45.0]
[1721112870561,3.26344285,155.12,155.06,0.98061053]
[1721112870768,3.26344285,155.12,155.02,20.0]
[1721112871656,3.26344285,155.14,155.03,1.28930431]
[1721112871854,3.26344285,155.14,155.03,46.28930431]
[1721112872068,3.26344285,155.14,155.04,20.0]
[1721112872369,3.26344285,155.14,155.05,45.0]
[1721112873363,3.26344285,155.12,155.05,45.0]
[1721112874268,3.26344285,155.12,155.0,0.04051788]
[1721112874460,21.5282,155.11,155.0,0.04051788]
[1721112874644,3.76344285,155.1,155.0,0.04051788]
[1721112876088,3.26344285,155.06,155.0,0.04051788]
[1721112876285,6.1421,155.05,155.0,0.04051788]
[1721112876785,3.76344285,155.1,155.0,0.04051788]
[1721112876989,6.1071,155.09,155.0,0.04051788]
[1721112877212,3.26344285,155.08,155.0,0.04051788]
[1721112877901,0.5,155.07,155.0,0.04051788]
[1721112878302,3.26344285,155.06,155.0,0.04051788]
[1721112878498,0.5,155.05,155.0,0.04051788]
[1721112878697,6.4465,155.02,155.0,0.04051788]
[1721112878878,0.5,155.01,155.0,0.04051788]
[1721112879281,3.26344285,155.0,154.94,0.8176641]
[1721112879492,0.5,154.99,154.94,0.8176641]
[1721112879919,0.5,154.99,154.94,0.3176641]
[1721112880296,26.06874285,154.98,154.94,0.3176641]
[1721112880497,0.5,154.97,154.94,0.3176641]
[1721112880698,3.26344285,154.96,154.94,0.3176641]
[1721112880918,22.8053,154.98,154.94,0.3176641]
[1721112882294,0.5,154.97,154.94,0.3176641]
[1721112882496,10.21624285,154.97,154.94,0.3176641]
[1721112882697,3.26344285,154.95,154.94,0.3176641]
[1721112882911,3.76344285,154.97,154.94,0.3176641]
[1721112883123,3.26344285,154.95,154.94,0.3176641]
[1721112883500,3.26344285,154.95,154.83,6.60664472]
[1721112883808,0.5,154.94,154.83,6.60664472]
[1721112884010,3.26344285,154.95,154.83,49.73664472]
[1721112884320,0.5,154.96,154.78,0.8176641]
[1721112884321,43.13,154.85,154.78,0.8176641]
[1721112884522,0.5,154.84,154.78,0.8176641]
[1721112884717,12.4876,154.87,154.78,0.8176641]
[1721112884718,0.5,154.86,154.78,0.8176641]
[1721112884907,0.5,154.85,154.78,0.8176641]
[1721112885921,6.4592,154.82,154.78,0.8176641]
[1721112886094,6.9598,154.81,154.78,0.8176641]
[1721112886295,0.5,154.8,154.78,0.8176641]
[1721112886500,6.4592,154.82,154.78,0.8176641]
[1721112886728,0.5,154.81,154.78,0.8176641]
[1721112886949,3.26344285,154.86,154.78,0.8176641]
[1721112886950,0.5,154.85,154.78,0.8176641]
[1721112887231,3.26344285,154.84,154.78,0.8176641]
[1721112887401,0.5,154.83,154.78,0.8176641]
[1721112887600,6.4598,154.81,154.78,0.8176641]
[1721112887909,0.5,154.8,154.78,0.8176641]
[1721112888114,3.26344285,154.8,154.78,0.8176641]
[1721112888303,0.5,154.79,154.78,0.8176641]
[1721112889811,0.5,154.81,154.78,0.8176641]
[1721112890019,3.26344285,154.79,154.78,0.8176641]
[1721112890311,3.76344285,154.79,154.78,0.8176641]
[1721112893513,3.26344285,154.79,154.78,0.8176641]
[1721112893731,3.76344285,154.79,154.78,0.8176641]
[1721112894416,10.22374285,154.79,154.78,0.8176641]
[1721112894617,3.76344285,154.79,154.78,0.8176641]
[1721112895123,10.22374285,154.79,154.78,0.8176641]
[1721112895433,3.26344285,154.74,154.64,15.5802]
[1721112895629,0.5,154.73,154.64,15.5802]
[1721112895931,0.5,154.72,154.62,0.8176641]
[1721112896132,0.5,154.75,154.63,1.29290419]
[1721112896341,0.5,154.75,154.62,0.8176641]
[1721112896528,3.26344285,154.72,154.62,0.8176641]
[1721112896730,0.5,154.71,154.62,0.8176641]
[1721112896914,0.5,154.7,154.62,0.8176641]
[1721112897237,3.76344285,154.7,154.62,0.8176641]
[1721112897443,6.5822,154.76,154.62,0.8176641]
[1721112897644,0.5,154.75,154.62,0.8176641]
[1721112897937,3.26344285,154.71,154.62,0.8176641]
[1721112898142,3.26344285,154.69,154.62,0.8176641]
[1721112898645,9.72904285,154.67,154.62,0.8176641]
[1721112898818,0.5,154.66,154.62,0.8176641]
[1721112899434,6.5693,154.65,154.62,0.8176641]
[1721112899641,0.5,154.64,154.62,0.8176641]
[1721112899826,3.26344285,154.63,154.62,0.8176641]
[1721112900207,6.4683,154.6,154.59,57.96978151]
[1721112900441,0.5,154.6,154.59,41.30318151]
[1721112900911,0.5,154.62,154.59,41.30318151]
[1721112901227,3.26344285,154.67,154.59,41.30318151]
[1721112901616,3.26344285,154.65,154.59,41.30318151]
[1721112901811,68.948,154.61,154.59,10.80298151]
[1721112902017,3.26344285,154.6,154.59,10.80298151]
[1721112902213,3.76344285,154.6,154.59,10.80298151]
[1721112902633,0.5,154.6,154.59,10.80298151]
[1721112902846,3.26344285,154.6,154.59,10.80298151]
[1721112903115,0.5,154.62,154.59,10.80298151]
[1721112903514,6.60616593,154.67,154.59,10.80298151]
[1721112903515,0.5,154.64,154.6,0.4216]
[1721112903718,0.5,154.66,154.6,0.4216]
[1721112903925,0.5,154.69,154.6,45.4216]
[1721112904840,3.26344285,154.65,154.6,45.4216]
[1721112905045,0.5,154.64,154.6,0.4216]
[1721112906124,3.26344285,154.65,154.6,0.4216]
[1721112906449,3.26344285,154.67,154.6,0.4216]
[1721112906618,0.5,154.66,154.6,45.4216]
[1721112907342,0.5,154.66,154.6,0.4216]
[1721112908512,3.26344285,154.67,154.6,0.4216]
[1721112908847,0.5,154.66,154.6,0.4216]
[1721112909547,0.5,154.66,154.6,45.4216]
[1721112909728,0.5,154.66,154.6,0.4216]
[1721112909928,0.5,154.68,154.6,0.4216]
[1721112910147,0.5,154.67,154.6,0.4216]
[1721112910447,3.26344285,154.71,154.6,0.4216]
[1721112910448,0.5,154.7,154.6,0.4216]
[1721112911240,0.5,154.7,154.6,20.4216]
[1721112911752,0.5,154.7,154.61,1.2931016]
[1721112911917,0.5,154.75,154.63,6.5657]
[1721112912118,0.5,154.75,154.64,65.0]
[1721112912335,0.5,154.75,154.64,45.0]
[1721112912914,3.26344285,154.77,154.64,45.0]
[1721112912915,0.5,154.76,154.64,45.0]
[1721112913116,0.5,154.76,154.65,20.0]
[1721112913322,0.5,154.76,154.66,45.0]
[1721112913836,0.5,154.81,154.68,15.8823]
[1721112914138,0.5,154.81,154.69,45.0]
[1721112914343,3.76344285,154.81,154.69,45.0]
[1721112914656,3.26344285,154.76,154.69,45.0]
[1721112914824,6.4642,154.7,154.63,6.5657]
[1721112915027,3.76344285,154.69,154.63,6.5657]
[1721112915223,3.76344285,154.69,154.62,16.1972]
[1721112915224,6.4658,154.66,154.62,16.1972]
[1721112915439,3.26344285,154.64,154.6,0.4216]
[1721112915638,0.5,154.63,154.6,0.4216]
[1721112915944,3.26344285,154.62,154.6,0.4216]
[1721112916146,26.3178,154.61,154.6,0.4216]
[1721112916350,3.26344285,154.61,154.6,0.4216]
[1721112916521,22.61344285,154.61,154.6,0.4216]
[1721112916720,3.26344285,154.61,154.6,0.4216]
[1721112917130,3.26344285,154.63,154.6,0.4216]
[1721112917725,3.26344285,154.65,154.6,0.4216]
[1721112918051,3.26344285,154.7,154.6,0.4216]
[1721112918250,3.26344285,154.66,154.6,0.4216]
[1721112918427,16.6623,154.69,154.6,0.4216]
[1721112918428,3.26344285,154.61,154.6,0.4216]
[1721112918630,3.76344285,154.61,154.6,0.4216]
[1721112918828,0.5,154.67,154.6,0.4216]
[1721112919342,3.26344285,154.63,154.6,0.4216]
[1721112919550,3.26344285,154.61,154.6,0.4216]
[1721112919734,0.5,154.62,154.6,0.4216]
[1721112920130,6.9677,154.62,154.6,0.4216]
[1721112920339,22.61344285,154.61,154.6,0.4216]
[1721112920727,19.35,154.61,154.6,0.4216]
[1721112921104,6.4677,154.62,154.6,0.4216]
[1721112921223,3.26344285,154.65,154.6,0.4216]
[1721112921567,3.26344285,154.61,154.6,0.4216]
[1721112922055,22.61344285,154.61,154.6,0.4216]
[1721112922631,23.11344285,154.61,154.6,0.4216]
[1721112923457,22.61344285,154.61,154.6,0.4216]
[1721112923954,6.4683,154.6,154.53,0.04064112]
[1721112924153,29.08424285,154.54,154.53,0.04064112]
[1721112925358,29.08674285,154.48,154.47,0.8176641]
[1721112925567,3.26344285,154.49,154.47,0.8176641]
[1721112925857,0.5,154.48,154.47,0.8176641]
[1721112927256,0.5,154.54,154.47,0.8176641]
[1721112927442,3.26344285,154.52,154.47,0.8176641]
[1721112927649,0.5,154.51,154.47,0.8176641]
[1721112927857,3.76344285,154.51,154.47,0.8176641]
[1721112928053,0.5,154.51,154.47,0.8176641]
[1721112928277,0.5,154.52,154.48,16.5461]
[1721112928461,0.5,154.52,154.49,45.0]
[1721112928775,3.26344285,154.51,154.48,16.5461]
[1721112928954,0.5,154.5,154.48,16.5461]
[1721112929159,3.26344285,154.49,154.47,0.8176641]
[1721112929357,0.5,154.48,154.47,0.8176641]
[1721112932774,24.55943763,154.57,154.47,0.8176641]
[1721112932775,0.5,154.51,154.47,0.8176641]
[1721112932980,3.26344285,154.55,154.47,0.8176641]
[1721112933273,0.5,154.54,154.47,0.8176641]
[1721112933668,0.5,154.54,154.49,15.648]
[1721112933869,0.5,154.58,154.5,45.0]
[1721112934178,0.5,154.57,154.5,45.0]
[1721112934484,3.26344285,154.55,154.5,45.0]
[1721112934671,0.5,154.54,154.49,15.648]
[1721112934976,3.26344285,154.53,154.47,0.8176641]
[1721112935281,3.26344285,154.49,154.47,0.8176641]
[1721112935453,0.5,154.48,154.47,0.8176641]
[1721112936047,6.9733,154.48,154.47,0.8176641]
[1721112937970,0.5,154.48,154.47,0.8176641]
[1721112938169,6.9733,154.48,154.47,0.8176641]
[1721112939184,0.5,154.48,154.47,0.8176641]
[1721112939563,26.3233,154.48,154.47,0.8176641]
[1721112940265,19.85,154.48,154.47,0.8176641]
[1721112940467,26.3233,154.48,154.47,0.8176641]
[1721112941383,29.08844285,154.44,154.43,1.256874]
[1721112941560,39.08844285,154.44,154.43,0.756874]
[1721112941766,29.08844285,154.44,154.43,0.756874]
[1721112941960,22.61344285,154.4,154.31,0.8176641]
[1721112942194,3.26344285,154.36,154.31,0.8176641]
[1721112942491,19.35,154.38,154.31,0.8176641]
[1721112942694,3.26344285,154.39,154.31,0.3568556]
[1721112943095,3.26344285,154.41,154.32,1.29562434]
[1721112943278,53.09,154.49,154.32,6.4119]
[1721112943484,16.3137,154.52,154.33,15.1902]
[1721112943485,19.35,154.5,154.33,15.1902]
[1721112943679,9.09555923,154.52,154.35,15.1902]
[1721112943885,9.09555923,154.52,154.36,15.1902]
[1721112944086,59.67703556,154.54,154.36,15.1902]
[1721112944385,6.58703556,154.54,154.38,15.744]
[1721112944588,6.58703556,154.54,154.4,22.3818]
[1721112944771,6.58703556,154.54,154.41,45.0]
[1721112944980,6.58703556,154.54,154.43,15.744]
[1721112945178,6.58703556,154.54,154.44,6.438]
[1721112945375,53.09,154.59,154.45,45.0]
[1721112945575,19.35,154.54,154.45,45.0]
[1721112945992,10.0,154.58,154.45,45.0]
[1721112946280,10.0,154.52,154.43,15.744]
[1721112946588,19.35,154.48,154.43,15.744]
[1721112946769,53.09,154.55,154.43,15.744]
[1721112946770,59.5607,154.55,154.43,15.744]
[1721112946976,6.58418851,154.59,154.44,6.6508]
[1721112947804,53.09,154.62,154.44,6.6508]
[1721112947978,6.4692,154.58,154.44,6.6508]
[1721112948182,6.58391178,154.61,154.45,45.0]
[1721112948692,19.35,154.6,154.45,45.0]
[1721112949197,19.35,154.6,154.46,17.58837429]
[1721112949198,6.4683,154.6,154.46,17.58837429]
[1721112949401,6.4692,154.58,154.47,45.0]
[1721112949612,6.4695,154.57,154.47,45.0]
[1721112949811,19.35,154.57,154.47,45.0]
[1721112949976,19.76976662,154.57,154.46,16.2941]
[1721112950179,72.44,154.54,154.46,16.2941]
[1721112950379,72.85976662,154.54,154.46,16.2941]
[1721112950586,53.09,154.56,154.46,16.2941]
[1721112950880,28.23711656,154.57,154.46,16.2941]
[1721112951090,8.88711656,154.57,154.46,16.2941]
[1721112951889,8.88711656,154.57,154.47,45.0]
[1721112952518,8.88711656,154.57,154.5,15.2909]
[1721112952695,8.88711656,154.57,154.51,45.0]
[1721112952895,6.4684,154.6,154.51,45.0]
[1721112953094,13.05180945,154.61,154.51,45.0]
[1721112953292,19.35,154.63,154.51,45.0]
[1721112953508,6.58442267,154.63,154.52,1.2940715]
[1721112954101,6.58442267,154.63,154.51,45.0]
[1721112954303,6.58442267,154.63,154.52,1.29390665]
[1721112954717,9.07753239,154.64,154.53,6.6407]
[1721112954934,6.58375309,154.66,154.54,60.2909]
[1721112955120,6.58375309,154.66,154.54,79.6409]
[1721112955422,6.4642,154.7,154.55,1.28964709]
[1721112955630,6.58275698,154.71,154.55,1.28964709]
[1721112956000,6.58275698,154.71,154.54,79.6409]
[1721112956001,6.58275698,154.71,154.54,60.2909]
[1721112956317,6.4637,154.71,154.55,41.9316]
[1721112956494,9.24538734,154.73,154.56,45.0]
[1721112956694,6.4649,154.68,154.56,45.0]
[1721112957002,9.66515396,154.73,154.56,45.0]
[1721112957318,6.465,154.68,154.56,45.0]
[1721112957497,6.4655,154.67,154.56,45.0]
[1721112957818,6.4641,154.7,154.56,45.0]
[1721112958198,15.53417589,154.72,154.56,45.0]
[1721112958394,9.07077589,154.72,154.56,45.0]
[1721112958600,9.07077589,154.72,154.59,6.6068]
[1721112958814,9.07077589,154.72,154.6,45.0]
[1721112959340,9.49054251,154.72,154.59,6.6068]
[1721112960002,78.73904251,154.72,154.59,6.6068]
[1721112960330,10.0,154.66,154.58,15.7129]
[1721112960497,53.09,154.64,154.58,15.7129]
[1721112960698,9.13611541,154.68,154.58,15.7129]
[1721112961826,9.13611541,154.68,154.59,6.0313]
[1721112962037,6.4665,154.65,154.59,6.0313]
[1721112962322,9.30035129,154.71,154.6,1.29359847]
[1721112962625,9.30035129,154.71,154.59,6.0313]
[1721112963003,6.58792909,154.75,154.6,16.6532]
[1721112963202,6.465,154.68,154.6,16.6532]